[Event "Late-Titled-Tuesday-Blitz-February-06-2024"]
[Site "Chess.com"]
[Date "2024.02.06"]
[Round "9"]
[White "dropstoneDP"]
[Black "bascheyaro"]
[Result "1-0"]
[WhiteElo "2990"]
[BlackElo "2783"]
[TimeControl "180+1"]
[EndTime "15:40:50 PST"]
[Termination "dropstoneDP won by resignation"]

1. e4 {[%clk 0:03:00.9]} 1... e6 {[%clk 0:03:00]} 2. d4 {[%clk 0:03:00.1]} 2...
d5 {[%clk 0:03:00.4]} 3. exd5 {[%clk 0:02:52.1]} 3... exd5 {[%clk 0:03:00.8]} 4.
Nf3 {[%clk 0:02:52.6]} 4... Nf6 {[%clk 0:03:00.9]} 5. Bd3 {[%clk 0:02:52.9]}
5... c5 {[%clk 0:03:01.3]} 6. O-O {[%clk 0:02:52.3]} 6... c4 {[%clk 0:03:01.8]}
7. Re1+ {[%clk 0:02:52.3]} 7... Be7 {[%clk 0:03:02.5]} 8. Bf1 {[%clk 0:02:52.7]}
8... O-O {[%clk 0:03:03.2]} 9. b3 {[%clk 0:02:53]} 9... cxb3 {[%clk 0:03:04.1]}
10. axb3 {[%clk 0:02:53.2]} 10... Nc6 {[%clk 0:03:05]} 11. c3 {[%clk 0:02:51.6]}
11... Bf5 {[%clk 0:03:04.7]} 12. Ba3 {[%clk 0:02:50.5]} 12... Bxa3 {[%clk
0:03:03.4]} 13. Nxa3 {[%clk 0:02:50.4]} 13... a6 {[%clk 0:03:03.7]} 14. Nc2
{[%clk 0:02:47.7]} 14... Bxc2 {[%clk 0:03:03.1]} 15. Qxc2 {[%clk 0:02:47.7]}
15... Rc8 {[%clk 0:03:03.8]} 16. Qb2 {[%clk 0:02:36.8]} 16... Re8 {[%clk
0:03:03.5]} 17. Rxe8+ {[%clk 0:02:36.4]} 17... Qxe8 {[%clk 0:03:04.4]} 18. Re1
{[%clk 0:02:36.1]} 18... Qd7 {[%clk 0:03:04.2]} 19. Ne5 {[%clk 0:02:33.6]} 19...
Nxe5 {[%clk 0:02:58]} 20. dxe5 {[%clk 0:02:34]} 20... Ne4 {[%clk 0:02:58.2]} 21.
c4 {[%clk 0:02:31.8]} 21... Qe6 {[%clk 0:02:26.7]} 22. Qd4 {[%clk 0:02:26.9]}
22... Nf6 {[%clk 0:01:29.1]} 23. exf6 {[%clk 0:02:08]} 23... Qxe1 {[%clk
0:01:28.9]} 24. Qg4 {[%clk 0:02:08.4]} 1-0

[Event "Late-Titled-Tuesday-Blitz-February-06-2024"]
[Site "Chess.com"]
[Date "2024.02.06"]
[Round "9"]
[White "expii"]
[Black "martinmena"]
[Result "0-1"]
[WhiteElo "2201"]
[BlackElo "2181"]
[TimeControl "180+1"]
[EndTime "15:40:50 PST"]
[Termination "martinmena won by resignation"]

1. e4 {[%clk 0:02:56.1]} 1... c6 {[%clk 0:02:59.1]} 2. d4 {[%clk 0:02:52.9]}
2... d5 {[%clk 0:02:58.2]} 3. f3 {[%clk 0:02:53.8]} 3... e6 {[%clk 0:02:52.5]}
4. Nc3 {[%clk 0:02:43.8]} 4... Bb4 {[%clk 0:02:44.8]} 5. Ne2 {[%clk 0:02:38.3]}
5... dxe4 {[%clk 0:02:32.6]} 6. fxe4 {[%clk 0:02:37.2]} 6... Qh4+ {[%clk
0:02:28.4]} 7. Ng3 {[%clk 0:02:23.6]} 7... Nf6 {[%clk 0:01:57.1]} 8. Bd3 {[%clk
0:02:03.4]} 8... O-O {[%clk 0:01:41.1]} 9. O-O {[%clk 0:02:02]} 9... e5 {[%clk
0:01:40.2]} 10. dxe5 {[%clk 0:02:00.9]} 10... Ng4 {[%clk 0:01:38.3]} 11. h3
{[%clk 0:01:46]} 11... Qxg3 {[%clk 0:01:30.9]} 12. hxg4 {[%clk 0:01:34.9]} 12...
Bc5+ {[%clk 0:01:29.9]} 0-1

[Event "Late-Titled-Tuesday-Blitz-February-06-2024"]
[Site "Chess.com"]
[Date "2024.02.06"]
[Round "9"]
[White "Akhayan"]
[Black "WilsonPalencia21"]
[Result "0-1"]
[WhiteElo "2384"]
[BlackElo "2595"]
[TimeControl "180+1"]
[EndTime "15:40:53 PST"]
[Termination "WilsonPalencia21 won by resignation"]

1. e4 {[%clk 0:03:00.9]} 1... c5 {[%clk 0:02:54.6]} 2. Nf3 {[%clk 0:03:00.5]}
2... d6 {[%clk 0:02:53.3]} 3. d4 {[%clk 0:03:00.5]} 3... cxd4 {[%clk 0:02:54.1]}
4. Nxd4 {[%clk 0:03:00.2]} 4... Nf6 {[%clk 0:02:54.6]} 5. Nc3 {[%clk 0:02:58.1]}
5... g6 {[%clk 0:02:55.5]} 6. f4 {[%clk 0:02:57.5]} 6... Bg7 {[%clk 0:02:56.4]}
7. e5 {[%clk 0:02:57.9]} 7... Nh5 {[%clk 0:02:56.6]} 8. Bb5+ {[%clk 0:02:56.1]}
8... Bd7 {[%clk 0:02:55.4]} 9. e6 {[%clk 0:02:54.6]} 9... fxe6 {[%clk
0:02:56.3]} 10. Nxe6 {[%clk 0:02:39.8]} 10... Bxc3+ {[%clk 0:02:57.2]} 11. bxc3
{[%clk 0:02:39.3]} 11... Qc8 {[%clk 0:02:57.6]} 12. Bxd7+ {[%clk 0:02:35.1]}
12... Kxd7 {[%clk 0:02:57.3]} 13. Qg4 {[%clk 0:01:56.2]} 13... Qxc3+ {[%clk
0:02:51.5]} 14. Kf2 {[%clk 0:01:17.2]} 14... Nf6 {[%clk 0:02:34.4]} 15. Nc5+
{[%clk 0:01:05.9]} 15... Kc6 {[%clk 0:02:22.8]} 16. Be3 {[%clk 0:00:51.4]} 16...
Nxg4+ {[%clk 0:02:19.8]} 0-1

[Event "Late-Titled-Tuesday-Blitz-February-06-2024"]
[Site "Chess.com"]
[Date "2024.02.06"]
[Round "9"]
[White "AmanteDeMoi"]
[Black "Teidi96"]
[Result "1-0"]
[WhiteElo "2598"]
[BlackElo "2368"]
[TimeControl "180+1"]
[EndTime "15:40:55 PST"]
[Termination "AmanteDeMoi won by resignation"]

1. Nf3 {[%clk 0:02:12.1]} 1... d5 {[%clk 0:02:58.6]} 2. e3 {[%clk 0:02:12.7]}
2... e6 {[%clk 0:02:59]} 3. c4 {[%clk 0:02:13.1]} 3... Nf6 {[%clk 0:02:58.9]} 4.
b3 {[%clk 0:02:13.8]} 4... Be7 {[%clk 0:02:58.9]} 5. Bb2 {[%clk 0:02:14.4]} 5...
O-O {[%clk 0:02:59.6]} 6. Be2 {[%clk 0:02:14.9]} 6... b6 {[%clk 0:02:58.2]} 7.
O-O {[%clk 0:02:15.6]} 7... Bb7 {[%clk 0:02:58.8]} 8. d4 {[%clk 0:02:16.1]} 8...
dxc4 {[%clk 0:02:57.1]} 9. bxc4 {[%clk 0:02:16.2]} 9... c5 {[%clk 0:02:57.7]}
10. Nc3 {[%clk 0:02:16.8]} 10... cxd4 {[%clk 0:02:57.4]} 11. exd4 {[%clk
0:02:17.5]} 11... Nbd7 {[%clk 0:02:56.3]} 12. Rc1 {[%clk 0:02:18.1]} 12... Rc8
{[%clk 0:02:56]} 13. Re1 {[%clk 0:02:18.6]} 13... Bb4 {[%clk 0:02:44.2]} 14. Qb3
{[%clk 0:02:16.2]} 14... Ba5 {[%clk 0:02:41.8]} 15. Red1 {[%clk 0:02:12.6]}
15... Bxc3 {[%clk 0:02:38.3]} 16. Bxc3 {[%clk 0:02:11.7]} 16... Ne4 {[%clk
0:02:38.4]} 17. Ba1 {[%clk 0:02:12.2]} 17... Ndf6 {[%clk 0:02:38.1]} 18. Qe3
{[%clk 0:02:06.1]} 18... Ng4 {[%clk 0:02:35.5]} 19. Qf4 {[%clk 0:02:05.5]} 19...
Ngf6 {[%clk 0:02:06]} 20. Ne5 {[%clk 0:02:05.5]} 20... Nd7 {[%clk 0:01:54.8]}
21. Nxd7 {[%clk 0:02:00.2]} 21... Qxd7 {[%clk 0:01:54.6]} 22. d5 {[%clk
0:02:00.8]} 22... exd5 {[%clk 0:01:47.4]} 23. Qxe4 {[%clk 0:02:01.3]} 23... Rfe8
{[%clk 0:01:38.3]} 24. Qd4 {[%clk 0:01:56.1]} 24... f6 {[%clk 0:01:36.7]} 25.
Bg4 {[%clk 0:01:56.1]} 1-0

[Event "Late-Titled-Tuesday-Blitz-February-06-2024"]
[Site "Chess.com"]
[Date "2024.02.06"]
[Round "9"]
[White "Cambek64"]
[Black "ChEsper99"]
[Result "1-0"]
[WhiteElo "2505"]
[BlackElo "2261"]
[TimeControl "180+1"]
[EndTime "15:40:58 PST"]
[Termination "Cambek64 won by resignation"]

1. e4 {[%clk 0:02:46.2]} 1... c5 {[%clk 0:03:00.1]} 2. Nc3 {[%clk 0:02:45.6]}
2... d6 {[%clk 0:03:00.1]} 3. d3 {[%clk 0:02:45.4]} 3... Nc6 {[%clk 0:02:57.7]}
4. Be3 {[%clk 0:02:44.7]} 4... g6 {[%clk 0:02:57.6]} 5. d4 {[%clk 0:02:44.7]}
5... cxd4 {[%clk 0:02:56.5]} 6. Bxd4 {[%clk 0:02:45.2]} 6... Nxd4 {[%clk
0:02:56.6]} 7. Qxd4 {[%clk 0:02:45.7]} 7... Nf6 {[%clk 0:02:52.3]} 8. e5 {[%clk
0:02:46.1]} 8... dxe5 {[%clk 0:02:53.2]} 9. Bb5+ {[%clk 0:02:45.8]} 9... Bd7
{[%clk 0:02:50.7]} 10. Qxe5 {[%clk 0:02:45.9]} 10... Bxb5 {[%clk 0:02:46.7]} 11.
Nxb5 {[%clk 0:02:45.1]} 11... Rc8 {[%clk 0:02:23.9]} 12. Rd1 {[%clk 0:02:43.3]}
12... Qa5+ {[%clk 0:01:54.2]} 13. c3 {[%clk 0:02:39.3]} 13... Qxa2 {[%clk
0:00:55.9]} 14. Nd6+ {[%clk 0:02:29]} 14... Kd7 {[%clk 0:00:54.5]} 15. Nxc8+
{[%clk 0:02:20.1]} 15... Kxc8 {[%clk 0:00:52.6]} 16. Qc5+ {[%clk 0:02:19.9]} 1-0

[Event "Late-Titled-Tuesday-Blitz-February-06-2024"]
[Site "Chess.com"]
[Date "2024.02.06"]
[Round "9"]
[White "Schattman"]
[Black "martinez_95"]
[Result "1-0"]
[WhiteElo "2385"]
[BlackElo "2238"]
[TimeControl "180+1"]
[EndTime "15:41:10 PST"]
[Termination "Schattman won by resignation"]

1. f4 {[%clk 0:03:00.9]} 1... e6 {[%clk 0:02:55.8]} 2. Nf3 {[%clk 0:03:00.1]}
2... b6 {[%clk 0:02:55.7]} 3. g3 {[%clk 0:03:00.2]} 3... Bb7 {[%clk 0:02:56.2]}
4. Bg2 {[%clk 0:03:00.7]} 4... h6 {[%clk 0:02:56.7]} 5. d3 {[%clk 0:03:00.6]}
5... Nf6 {[%clk 0:02:54.5]} 6. e4 {[%clk 0:03:00.2]} 6... d6 {[%clk 0:02:53.5]}
7. O-O {[%clk 0:02:59.4]} 7... Nbd7 {[%clk 0:02:53.5]} 8. Qe2 {[%clk 0:02:57.4]}
8... g6 {[%clk 0:02:49.3]} 9. b3 {[%clk 0:02:56.7]} 9... Bg7 {[%clk 0:02:49.7]}
10. Bb2 {[%clk 0:02:49.8]} 10... Qe7 {[%clk 0:02:49.8]} 11. a4 {[%clk
0:02:46.6]} 11... a5 {[%clk 0:02:48]} 12. Nbd2 {[%clk 0:02:45.1]} 12... g5
{[%clk 0:02:47.6]} 13. fxg5 {[%clk 0:02:28.5]} 13... hxg5 {[%clk 0:02:47.2]} 14.
e5 {[%clk 0:02:28.1]} 14... Nh5 {[%clk 0:02:27.5]} 15. exd6 {[%clk 0:02:17.7]}
15... Qxd6 {[%clk 0:02:27.5]} 16. Bxg7 {[%clk 0:02:07.9]} 16... Nxg7 {[%clk
0:02:28.4]} 17. Nc4 {[%clk 0:01:50.6]} 17... Qc5+ {[%clk 0:02:17.4]} 18. d4
{[%clk 0:01:49.9]} 18... Bxf3 {[%clk 0:02:02.9]} 19. Qxf3 {[%clk 0:01:49.8]}
19... Qxd4+ {[%clk 0:02:02.9]} 20. Kh1 {[%clk 0:01:49.6]} 20... O-O {[%clk
0:01:53.8]} 21. Rad1 {[%clk 0:01:48.2]} 21... g4 {[%clk 0:01:43.9]} 22. Qe2
{[%clk 0:01:33.7]} 1-0

[Event "Late-Titled-Tuesday-Blitz-February-06-2024"]
[Site "Chess.com"]
[Date "2024.02.06"]
[Round "9"]
[White "CaspiIsrael"]
[Black "tgpgoat"]
[Result "1-0"]
[WhiteElo "2697"]
[BlackElo "2479"]
[TimeControl "180+1"]
[EndTime "15:41:15 PST"]
[Termination "CaspiIsrael won by resignation"]

1. e4 {[%clk 0:03:00.9]} 1... c5 {[%clk 0:02:59.9]} 2. Nf3 {[%clk 0:03:00.7]}
2... e6 {[%clk 0:03:00.3]} 3. b3 {[%clk 0:03:00.6]} 3... b6 {[%clk 0:02:59.8]}
4. Bb2 {[%clk 0:03:00.9]} 4... Bb7 {[%clk 0:02:59.5]} 5. Bd3 {[%clk 0:02:59.6]}
5... d6 {[%clk 0:02:58.6]} 6. O-O {[%clk 0:02:59.9]} 6... Nf6 {[%clk 0:02:58.9]}
7. Re1 {[%clk 0:03:00.4]} 7... Be7 {[%clk 0:02:59]} 8. c4 {[%clk 0:02:58]} 8...
O-O {[%clk 0:02:58.6]} 9. Bc2 {[%clk 0:02:58.6]} 9... Nc6 {[%clk 0:02:58.3]} 10.
d4 {[%clk 0:02:58.6]} 10... cxd4 {[%clk 0:02:58.6]} 11. Nxd4 {[%clk 0:02:59.5]}
11... Nxd4 {[%clk 0:02:58.6]} 12. Qxd4 {[%clk 0:02:59.1]} 12... Ne8 {[%clk
0:02:53.3]} 13. Nc3 {[%clk 0:02:58.6]} 13... Bf6 {[%clk 0:02:53]} 14. Qe3 {[%clk
0:02:59.3]} 14... Nc7 {[%clk 0:02:53]} 15. Rad1 {[%clk 0:02:58.9]} 15... Qe7
{[%clk 0:02:52.5]} 16. Ba3 {[%clk 0:02:58.4]} 16... Rfd8 {[%clk 0:02:51.8]} 17.
e5 {[%clk 0:02:57.8]} 17... Bg5 {[%clk 0:02:39.9]} 18. exd6 {[%clk 0:02:42]}
18... Bxe3 {[%clk 0:02:38.1]} 19. dxe7 {[%clk 0:02:40.2]} 19... Rxd1 {[%clk
0:02:38.6]} 20. Rxd1 {[%clk 0:02:37.6]} 20... Bg5 {[%clk 0:02:38]} 21. Rd7
{[%clk 0:02:16]} 21... Bf4 {[%clk 0:02:12.1]} 22. Rd8+ {[%clk 0:02:02.5]} 22...
Ne8 {[%clk 0:02:09.7]} 23. Be4 {[%clk 0:02:03]} 23... Bg5 {[%clk 0:01:22.9]} 24.
Rxa8 {[%clk 0:01:58.6]} 24... Bxa8 {[%clk 0:01:22.5]} 25. Bxa8 {[%clk
0:01:59.5]} 25... f5 {[%clk 0:01:22.3]} 26. Nb5 {[%clk 0:01:50]} 26... Kf7
{[%clk 0:01:21.9]} 1-0

[Event "Late-Titled-Tuesday-Blitz-February-06-2024"]
[Site "Chess.com"]
[Date "2024.02.06"]
[Round "9"]
[White "Jarrahi2452"]
[Black "Zhigalko_Sergei"]
[Result "0-1"]
[WhiteElo "2807"]
[BlackElo "2948"]
[TimeControl "180+1"]
[EndTime "15:41:19 PST"]
[Termination "Zhigalko_Sergei won by resignation"]

1. d4 {[%clk 0:03:00.9]} 1... Nf6 {[%clk 0:02:58]} 2. Bf4 {[%clk 0:03:00.9]}
2... e6 {[%clk 0:02:57]} 3. e3 {[%clk 0:02:59.7]} 3... b6 {[%clk 0:02:57]} 4.
Nf3 {[%clk 0:02:58.3]} 4... Bb7 {[%clk 0:02:56.8]} 5. Nbd2 {[%clk 0:02:58.1]}
5... Nh5 {[%clk 0:02:56.7]} 6. Bg5 {[%clk 0:02:56.3]} 6... Be7 {[%clk 0:02:57]}
7. Bxe7 {[%clk 0:02:55.6]} 7... Qxe7 {[%clk 0:02:57.9]} 8. Bd3 {[%clk
0:02:52.7]} 8... d6 {[%clk 0:02:57.2]} 9. O-O {[%clk 0:02:52.2]} 9... Nd7 {[%clk
0:02:57.3]} 10. c4 {[%clk 0:02:48.2]} 10... O-O {[%clk 0:02:54.6]} 11. Qc2
{[%clk 0:02:42.1]} 11... Nhf6 {[%clk 0:02:52.1]} 12. Ne4 {[%clk 0:02:39.8]}
12... c5 {[%clk 0:02:45.9]} 13. Nfd2 {[%clk 0:02:28.5]} 13... Rac8 {[%clk
0:02:43.1]} 14. b3 {[%clk 0:02:10.6]} 14... cxd4 {[%clk 0:02:30.8]} 15. exd4
{[%clk 0:02:09.1]} 15... d5 {[%clk 0:02:30.5]} 16. Nxf6+ {[%clk 0:02:00.6]}
16... Nxf6 {[%clk 0:02:31.4]} 17. Rfe1 {[%clk 0:01:57.8]} 17... Rfd8 {[%clk
0:02:25.9]} 18. Qb2 {[%clk 0:01:57.3]} 18... Qd6 {[%clk 0:02:06.7]} 19. cxd5
{[%clk 0:01:45.6]} 19... Qxd5 {[%clk 0:02:00.1]} 20. Nf3 {[%clk 0:01:39.6]}
20... Qd6 {[%clk 0:02:00]} 21. Ng5 {[%clk 0:01:15.4]} 21... Qxd4 {[%clk
0:01:54.2]} 0-1

[Event "Late-Titled-Tuesday-Blitz-February-06-2024"]
[Site "Chess.com"]
[Date "2024.02.06"]
[Round "9"]
[White "pinguino120"]
[Black "N_Mullodzhanov"]
[Result "0-1"]
[WhiteElo "2275"]
[BlackElo "2479"]
[TimeControl "180+1"]
[EndTime "15:41:35 PST"]
[Termination "N_Mullodzhanov won by resignation"]

1. d4 {[%clk 0:02:53.8]} 1... Nf6 {[%clk 0:02:59.4]} 2. Nc3 {[%clk 0:02:47.6]}
2... d5 {[%clk 0:02:58.7]} 3. Bf4 {[%clk 0:02:47.2]} 3... g6 {[%clk 0:02:56.4]}
4. e3 {[%clk 0:02:45.5]} 4... Bg7 {[%clk 0:02:55.2]} 5. h4 {[%clk 0:02:45.6]}
5... O-O {[%clk 0:02:55]} 6. Be2 {[%clk 0:02:44.9]} 6... c5 {[%clk 0:02:53]} 7.
Nb5 {[%clk 0:02:36.8]} 7... Ne4 {[%clk 0:02:36.2]} 8. Nc7 {[%clk 0:02:25.7]}
8... e5 {[%clk 0:02:35.3]} 9. Nxa8 {[%clk 0:02:16.9]} 9... exf4 {[%clk
0:02:33.4]} 10. Nf3 {[%clk 0:02:04.5]} 10... fxe3 {[%clk 0:02:29.2]} 11. fxe3
{[%clk 0:02:04.5]} 11... Nc6 {[%clk 0:02:18.7]} 12. dxc5 {[%clk 0:02:02.8]}
12... Bxb2 {[%clk 0:02:16.5]} 13. Rb1 {[%clk 0:01:59.2]} 13... Bc3+ {[%clk
0:02:16.7]} 14. Kf1 {[%clk 0:01:58.8]} 14... Ng3+ {[%clk 0:02:16.9]} 15. Kg1
{[%clk 0:01:58.3]} 15... Nxh1 {[%clk 0:02:15.6]} 16. Kxh1 {[%clk 0:01:59.2]}
16... Bg4 {[%clk 0:02:15.5]} 17. Qd3 {[%clk 0:01:55.5]} 17... Bg7 {[%clk
0:02:09.5]} 18. Rxb7 {[%clk 0:01:48.7]} 18... Qxa8 {[%clk 0:02:06.9]} 19. Rc7
{[%clk 0:01:48.8]} 19... Rc8 {[%clk 0:01:58.5]} 20. Rxc8+ {[%clk 0:01:47.1]}
20... Qxc8 {[%clk 0:01:59.4]} 21. Qxd5 {[%clk 0:01:46.9]} 21... Be6 {[%clk
0:01:59.3]} 22. Qd6 {[%clk 0:01:45.6]} 22... Bxa2 {[%clk 0:01:56.6]} 23. Nd4
{[%clk 0:01:38.1]} 23... Na5 {[%clk 0:01:42.9]} 24. Bf3 {[%clk 0:01:13.3]} 24...
Bf8 {[%clk 0:01:41]} 25. Qxg6+ {[%clk 0:01:07.3]} 0-1

[Event "Late-Titled-Tuesday-Blitz-February-06-2024"]
[Site "Chess.com"]
[Date "2024.02.06"]
[Round "9"]
[White "GadimbayliA"]
[Black "h4parah5"]
[Result "1-0"]
[WhiteElo "2839"]
[BlackElo "2953"]
[TimeControl "180+1"]
[EndTime "15:41:40 PST"]
[Termination "GadimbayliA won by resignation"]

1. e4 {[%clk 0:02:58.8]} 1... c5 {[%clk 0:03:00.3]} 2. Nf3 {[%clk 0:02:58.8]}
2... e6 {[%clk 0:03:00.9]} 3. d4 {[%clk 0:02:58.2]} 3... cxd4 {[%clk 0:03:01.8]}
4. Nxd4 {[%clk 0:02:59.1]} 4... Nc6 {[%clk 0:03:02.5]} 5. Nc3 {[%clk 0:02:59.2]}
5... Qc7 {[%clk 0:03:02.6]} 6. Be3 {[%clk 0:02:58.9]} 6... a6 {[%clk 0:03:02.6]}
7. Qd2 {[%clk 0:02:59.2]} 7... Nf6 {[%clk 0:02:59.6]} 8. f4 {[%clk 0:02:59.2]}
8... b5 {[%clk 0:02:55.4]} 9. Nxc6 {[%clk 0:02:56.1]} 9... Qxc6 {[%clk
0:02:52.4]} 10. e5 {[%clk 0:02:56.4]} 10... b4 {[%clk 0:02:47.1]} 11. exf6
{[%clk 0:02:54.7]} 11... bxc3 {[%clk 0:02:47.1]} 12. Qxc3 {[%clk 0:02:55.4]}
12... Qxc3+ {[%clk 0:02:46.7]} 13. bxc3 {[%clk 0:02:56.3]} 13... gxf6 {[%clk
0:02:46.5]} 14. Rb1 {[%clk 0:02:56.6]} 14... f5 {[%clk 0:02:42.8]} 15. g3 {[%clk
0:02:47.2]} 15... Bg7 {[%clk 0:02:36.4]} 16. c4 {[%clk 0:02:40.3]} 16... a5
{[%clk 0:02:24.4]} 17. Bg2 {[%clk 0:02:29.3]} 17... Ra6 {[%clk 0:02:23.7]} 18.
Rb8 {[%clk 0:02:16.6]} 18... O-O {[%clk 0:02:21]} 19. Kf2 {[%clk 0:02:16.7]}
19... Rd6 {[%clk 0:02:10.5]} 20. Rhb1 {[%clk 0:01:21.8]} 20... Ba6 {[%clk
0:01:20.5]} 21. Rxf8+ {[%clk 0:01:22.7]} 21... Bxf8 {[%clk 0:01:20.4]} 22. c5
{[%clk 0:01:21.9]} 1-0

[Event "Late-Titled-Tuesday-Blitz-February-06-2024"]
[Site "Chess.com"]
[Date "2024.02.06"]
[Round "9"]
[White "jcibarra"]
[Black "DenLaz"]
[Result "1/2-1/2"]
[WhiteElo "2900"]
[BlackElo "3044"]
[TimeControl "180+1"]
[EndTime "15:41:52 PST"]
[Termination "Game drawn by agreement"]

1. e4 {[%clk 0:03:00.9]} 1... c5 {[%clk 0:03:00.4]} 2. Nf3 {[%clk 0:03:01.1]}
2... e6 {[%clk 0:03:01.1]} 3. d3 {[%clk 0:02:53.7]} 3... Nc6 {[%clk 0:03:00.3]}
4. g3 {[%clk 0:02:53.9]} 4... g6 {[%clk 0:02:55]} 5. Bg2 {[%clk 0:02:54.1]} 5...
Bg7 {[%clk 0:02:55.7]} 6. O-O {[%clk 0:02:54.7]} 6... Nge7 {[%clk 0:02:56.1]} 7.
c3 {[%clk 0:02:54.8]} 7... e5 {[%clk 0:02:55.8]} 8. a3 {[%clk 0:02:53.6]} 8...
O-O {[%clk 0:02:52.2]} 9. b4 {[%clk 0:02:54]} 9... d6 {[%clk 0:02:52.4]} 10. b5
{[%clk 0:02:54.7]} 10... Na5 {[%clk 0:02:52.4]} 11. c4 {[%clk 0:02:55.3]} 11...
h6 {[%clk 0:02:48.7]} 12. Nc3 {[%clk 0:02:54.8]} 12... f5 {[%clk 0:02:47.7]} 13.
Bd2 {[%clk 0:02:43.6]} 13... f4 {[%clk 0:02:47.2]} 14. Ne1 {[%clk 0:02:39.9]}
14... b6 {[%clk 0:02:45.1]} 15. g4 {[%clk 0:02:35.8]} 15... g5 {[%clk
0:02:33.6]} 16. f3 {[%clk 0:02:34.2]} 16... h5 {[%clk 0:02:31.6]} 17. h3 {[%clk
0:02:34.6]} 17... Ng6 {[%clk 0:02:31.7]} 18. Rf2 {[%clk 0:02:34.3]} 18... Be6
{[%clk 0:02:30]} 19. Bf1 {[%clk 0:02:34.8]} 19... Kf7 {[%clk 0:02:30.1]} 20. Ra2
{[%clk 0:02:31.9]} 20... Rh8 {[%clk 0:02:30.2]} 21. Nd5 {[%clk 0:02:31.5]} 21...
Nb7 {[%clk 0:02:25]} 22. a4 {[%clk 0:02:26.1]} 22... Bxd5 {[%clk 0:02:22.4]} 23.
cxd5 {[%clk 0:02:23.7]} 23... Bf6 {[%clk 0:02:19.5]} 24. Nc2 {[%clk 0:02:22.3]}
24... Na5 {[%clk 0:02:11.2]} 25. Bxa5 {[%clk 0:02:14.7]} 25... bxa5 {[%clk
0:02:11.3]} 26. Na3 {[%clk 0:02:15.4]} 26... Qc7 {[%clk 0:02:11.7]} 27. Nc4
{[%clk 0:02:15.1]} 27... Bd8 {[%clk 0:02:12.3]} 28. Qe1 {[%clk 0:02:13.4]} 28...
Ne7 {[%clk 0:01:55.1]} 29. Rh2 {[%clk 0:02:08.5]} 29... Nc8 {[%clk 0:01:50.5]}
30. Rag2 {[%clk 0:02:04.5]} 30... h4 {[%clk 0:01:49.3]} 31. Rb2 {[%clk
0:02:03.3]} 31... Rb8 {[%clk 0:01:40.8]} 32. Qc3 {[%clk 0:01:58.4]} 32... Nb6
{[%clk 0:01:37.7]} 33. Qc2 {[%clk 0:01:27.9]} 33... Nxc4 {[%clk 0:01:35.4]} 34.
dxc4 {[%clk 0:01:26.4]} 34... Rb6 {[%clk 0:01:31]} 1/2-1/2

[Event "Late-Titled-Tuesday-Blitz-February-06-2024"]
[Site "Chess.com"]
[Date "2024.02.06"]
[Round "9"]
[White "Veleamater"]
[Black "Zallio"]
[Result "0-1"]
[WhiteElo "2320"]
[BlackElo "2161"]
[TimeControl "180+1"]
[EndTime "15:42:05 PST"]
[Termination "Zallio won by resignation"]

1. g3 {[%clk 0:03:00.9]} 1... d5 {[%clk 0:02:58.3]} 2. Bg2 {[%clk 0:03:01.5]}
2... g6 {[%clk 0:02:58.9]} 3. d3 {[%clk 0:03:02.1]} 3... Bg7 {[%clk 0:02:58.2]}
4. Nf3 {[%clk 0:03:02.7]} 4... e5 {[%clk 0:02:57.9]} 5. O-O {[%clk 0:03:03.3]}
5... Ne7 {[%clk 0:02:57.1]} 6. h3 {[%clk 0:03:03.5]} 6... O-O {[%clk 0:02:56.9]}
7. Nc3 {[%clk 0:03:04.1]} 7... c6 {[%clk 0:02:50.2]} 8. e4 {[%clk 0:03:04.1]}
8... Re8 {[%clk 0:02:41.3]} 9. Nd2 {[%clk 0:03:02.3]} 9... d4 {[%clk 0:02:37.4]}
10. Ne2 {[%clk 0:03:01.4]} 10... f5 {[%clk 0:02:37.5]} 11. f4 {[%clk 0:03:01.9]}
11... Nd7 {[%clk 0:02:29.8]} 12. Nf3 {[%clk 0:03:02.1]} 12... c5 {[%clk
0:02:28.3]} 13. fxe5 {[%clk 0:03:01.7]} 13... Nxe5 {[%clk 0:02:27.7]} 14. Nxe5
{[%clk 0:03:01.4]} 14... Bxe5 {[%clk 0:02:27.6]} 15. Nf4 {[%clk 0:03:01.5]}
15... g5 {[%clk 0:02:17.6]} 16. Nh5 {[%clk 0:03:00.9]} 16... h6 {[%clk
0:02:17.2]} 17. h4 {[%clk 0:02:43.6]} 17... fxe4 {[%clk 0:02:04.7]} 18. Bxe4
{[%clk 0:02:38.1]} 18... Bh3 {[%clk 0:01:52.9]} 19. hxg5 {[%clk 0:02:27.7]}
19... Bxf1 {[%clk 0:01:52.3]} 20. Qxf1 {[%clk 0:02:27.1]} 20... Nc6 {[%clk
0:01:45.4]} 21. gxh6 {[%clk 0:02:21.8]} 21... Rf8 {[%clk 0:01:44.2]} 22. Qh3
{[%clk 0:02:12.3]} 22... Qc8 {[%clk 0:01:41.5]} 23. Qh4 {[%clk 0:02:07.8]} 23...
Kh8 {[%clk 0:01:29.9]} 24. Bg5 {[%clk 0:02:06.6]} 24... Qc7 {[%clk 0:01:22.7]}
25. Ng7 {[%clk 0:01:50.5]} 25... Bxg3 {[%clk 0:01:10.4]} 26. Qh5 {[%clk
0:01:47.9]} 26... Qf7 {[%clk 0:01:07.3]} 27. Qxf7 {[%clk 0:01:42.3]} 27... Rxf7
{[%clk 0:01:07.4]} 28. Kg2 {[%clk 0:01:38.7]} 28... Bf4 {[%clk 0:01:04.7]} 29.
Ne6 {[%clk 0:01:37.4]} 29... Bxg5 {[%clk 0:01:03]} 30. Nxg5 {[%clk 0:01:34.9]}
30... Rg8 {[%clk 0:01:03.6]} 0-1